[Event "Titled Tuesday Blitz May 03 Early 2022"]
[White "Vysochin, Spartak"]
[Black "Ciorgovean, Iustin"]
[WhiteFideId "14103516"]
[BlackFideId "1242911"]
[WhiteElo "2385"]
[BlackElo "2075"]
[Result "1-0"]
[Round "09"]
[TimeControl "180+1"]
[Date "2022.05.03"]
[WhiteClock "0:00:14"]
[BlackClock "0:00:13"]

1. e4 {[%clk 0:03:00]}  e5 {[%clk 0:02:59]} 2. Nf3 {[%clk 0:03:00]}  Nc6 {[%clk 0:03:00]} 3. Bb5 {[%clk 0:02:58]}  Nf6 {[%clk 0:02:59]} 4. O-O {[%clk 0:02:57]}  Nxe4 {[%clk 0:02:59]} 5. d4 {[%clk 0:02:56]}  Nd6 {[%clk 0:02:59]} 6. Ba4 {[%clk 0:02:55]}  exd4 {[%clk 0:02:42]} 7. c3 {[%clk 0:02:54]}  Be7 {[%clk 0:02:42]} 8. cxd4 {[%clk 0:02:53]}  O-O {[%clk 0:02:41]} 9. d5 {[%clk 0:02:38]}  Na5 {[%clk 0:02:27]} 10. Nc3 {[%clk 0:02:34]}  b6 {[%clk 0:02:18]} 11. Bf4 {[%clk 0:02:27]}  Bf6 {[%clk 0:02:14]} 12. Re1 {[%clk 0:02:12]}  Nac4 {[%clk 0:02:10]} 13. Qc2 {[%clk 0:01:50]}  Ba6 {[%clk 0:01:57]} 14. Rad1 {[%clk 0:01:46]}  Rb8 {[%clk 0:01:36]} 15. b3 {[%clk 0:01:44]}  Na3 {[%clk 0:01:34]} 16. Qc1 {[%clk 0:01:43]}  b5 {[%clk 0:01:28]} 17. Bxd6 {[%clk 0:01:42]}  cxd6 {[%clk 0:01:26]} 18. Ne4 {[%clk 0:01:42]}  bxa4 {[%clk 0:01:20]} 19. Qxa3 {[%clk 0:01:42]}  Be5 {[%clk 0:01:06]} 20. Nxd6 {[%clk 0:01:23]}  Bxd6 {[%clk 0:00:59]} 21. Qxd6 {[%clk 0:01:23]}  Qb6 {[%clk 0:00:59]} 22. Qxd7 {[%clk 0:01:17]}  axb3 {[%clk 0:00:59]} 23. axb3 {[%clk 0:01:17]}  Qxb3 {[%clk 0:00:54]} 24. Qxa7 {[%clk 0:01:15]}  Be2 {[%clk 0:00:51]} 25. Nd4 {[%clk 0:01:10]}  Qxd1 {[%clk 0:00:44]} 26. Rxd1 {[%clk 0:01:10]}  Bxd1 {[%clk 0:00:45]} 27. h3 {[%clk 0:01:09]}  Bb3 {[%clk 0:00:43]} 28. d6 {[%clk 0:01:02]}  Bd5 {[%clk 0:00:34]} 29. d7 {[%clk 0:00:58]}  Rbd8 {[%clk 0:00:29]} 30. Qc7 {[%clk 0:00:52]}  Be6 {[%clk 0:00:27]} 31. Nxe6 {[%clk 0:00:39]}  fxe6 {[%clk 0:00:28]} 32. Qd6 {[%clk 0:00:39]}  Kf7 {[%clk 0:00:24]} 33. g4 {[%clk 0:00:36]}  h6 {[%clk 0:00:23]} 34. Kg2 {[%clk 0:00:35]}  Kf6 {[%clk 0:00:20]} 35. Qd4+ {[%clk 0:00:33]}  Kf7 {[%clk 0:00:20]} 36. h4 {[%clk 0:00:31]}  Rg8 {[%clk 0:00:20]} 37. Kg3 {[%clk 0:00:26]}  Ke7 {[%clk 0:00:20]} 38. Qc5+ {[%clk 0:00:24]}  Kxd7 {[%clk 0:00:20]} 39. Qa7+ {[%clk 0:00:23]}  Kd6 {[%clk 0:00:19]} 40. h5 {[%clk 0:00:24]}  Rd7 {[%clk 0:00:17]} 41. Qa3+ {[%clk 0:00:22]}  Kc7 {[%clk 0:00:17]} 42. f4 {[%clk 0:00:22]}  Rgd8 {[%clk 0:00:14]} 43. Kh4 {[%clk 0:00:23]}  Rd4 {[%clk 0:00:13]} 44. Qc5+ {[%clk 0:00:22]}  Kb7 {[%clk 0:00:13]} 45. Qb5+ {[%clk 0:00:21]}  Kc7 {[%clk 0:00:13]} 46. Qe5+ {[%clk 0:00:21]}  Kb7 {[%clk 0:00:13]} 47. Qxg7+ {[%clk 0:00:21]}  R8d7 {[%clk 0:00:13]} 48. Qxh6 {[%clk 0:00:21]}  Rf7 {[%clk 0:00:13]} 49. Qxe6 {[%clk 0:00:19]}  Rdxf4 {[%clk 0:00:13]} 50. h6 {[%clk 0:00:15]}  R4f6 {[%clk 0:00:13]} 51. Qxf6 {[%clk 0:00:12]}  Rxf6 {[%clk 0:00:12]} 52. g5 {[%clk 0:00:13]}  Rf4+ {[%clk 0:00:12]} 53. Kh5 {[%clk 0:00:13]}  Kc7 {[%clk 0:00:13]} 54. h7 {[%clk 0:00:13]}  Rf1 {[%clk 0:00:13]} 55. Kg6 {[%clk 0:00:13]}  Rf8 {[%clk 0:00:12]} 56. Kg7 {[%clk 0:00:13]}  Re8 {[%clk 0:00:11]} 57. h8=Q {[%clk 0:00:13]}  Rxh8 {[%clk 0:00:12]} 58. Kxh8 {[%clk 0:00:13]}  Kd6 {[%clk 0:00:13]} 59. g6 {[%clk 0:00:14]} 1-0


[Site "https://www.chess.com"]

[Event "Titled Tuesday Blitz May 03 Early 2022"]
[White "Warchol, Kamil"]
[Black "Laohawirapap, Prin"]
[WhiteFideId "21858241"]
[BlackFideId "6205003"]
[WhiteElo "1910"]
[BlackElo "1832"]
[Result "0-1"]
[Round "09"]
[TimeControl "180+1"]
[Date "2022.05.03"]
[WhiteClock "0:00:14"]
[BlackClock "0:00:14"]

1. e4 {[%clk 0:02:12]}  e6 {[%clk 0:02:56]} 2. Nf3 {[%clk 0:02:12]}  d5 {[%clk 0:02:56]} 3. exd5 {[%clk 0:02:13]}  exd5 {[%clk 0:02:56]} 4. d4 {[%clk 0:02:14]}  Nf6 {[%clk 0:02:56]} 5. Be2 {[%clk 0:02:15]}  c5 {[%clk 0:02:55]} 6. O-O {[%clk 0:02:16]}  Nc6 {[%clk 0:02:55]} 7. Re1 {[%clk 0:02:16]}  Be7 {[%clk 0:02:49]} 8. dxc5 {[%clk 0:02:17]}  O-O {[%clk 0:02:45]} 9. Nbd2 {[%clk 0:02:16]}  Bxc5 {[%clk 0:02:45]} 10. Nb3 {[%clk 0:02:17]}  Bb6 {[%clk 0:02:45]} 11. Bg5 {[%clk 0:02:14]}  Bxf2+ {[%clk 0:02:42]} 12. Kh1 {[%clk 0:01:54]}  Bxe1 {[%clk 0:02:41]} 13. Qxe1 {[%clk 0:01:55]}  h6 {[%clk 0:02:38]} 14. Bh4 {[%clk 0:01:55]}  Re8 {[%clk 0:02:34]} 15. Qf1 {[%clk 0:01:45]}  Bf5 {[%clk 0:02:26]} 16. Nfd4 {[%clk 0:01:37]}  Bh7 {[%clk 0:02:23]} 17. Bd3 {[%clk 0:01:26]}  Nxd4 {[%clk 0:02:15]} 18. Nxd4 {[%clk 0:01:25]}  Bxd3 {[%clk 0:02:07]} 19. Qxd3 {[%clk 0:01:26]}  Qb6 {[%clk 0:02:04]} 20. Rf1 {[%clk 0:01:13]}  Ne4 {[%clk 0:02:03]} 21. Nf5 {[%clk 0:01:08]}  Qe6 {[%clk 0:01:50]} 22. c3 {[%clk 0:00:47]}  Nd6 {[%clk 0:01:48]} 23. Nd4 {[%clk 0:00:41]}  Qe4 {[%clk 0:01:48]} 24. Qg3 {[%clk 0:00:42]}  Qg6 {[%clk 0:01:18]} 25. Qf3 {[%clk 0:00:40]}  Nc4 {[%clk 0:01:15]} 26. Qf2 {[%clk 0:00:37]}  Re4 {[%clk 0:01:05]} 27. Bg3 {[%clk 0:00:36]}  Rae8 {[%clk 0:01:04]} 28. Nf5 {[%clk 0:00:35]}  Nxb2 {[%clk 0:00:52]} 29. Qxa7 {[%clk 0:00:32]}  Nc4 {[%clk 0:00:33]} 30. Qf2 {[%clk 0:00:30]}  Re2 {[%clk 0:00:31]} 31. Qd4 {[%clk 0:00:30]}  Rd2 {[%clk 0:00:29]} 32. Qc5 {[%clk 0:00:28]}  b6 {[%clk 0:00:28]} 33. Ne7+ {[%clk 0:00:28]}  Rxe7 {[%clk 0:00:25]} 34. Qxe7 {[%clk 0:00:28]}  Qe4 {[%clk 0:00:20]} 35. Qxf7+ {[%clk 0:00:27]}  Kh7 {[%clk 0:00:20]} 36. Qf3 {[%clk 0:00:19]}  Qxf3 {[%clk 0:00:19]} 37. gxf3 {[%clk 0:00:19]}  Rxa2 {[%clk 0:00:18]} 38. Rd1 {[%clk 0:00:20]}  Ne3 {[%clk 0:00:17]} 39. Rb1 {[%clk 0:00:20]}  Nc4 {[%clk 0:00:17]} 40. Rd1 {[%clk 0:00:20]}  Rd2 {[%clk 0:00:17]} 41. Rc1 {[%clk 0:00:20]}  b5 {[%clk 0:00:15]} 42. Bf4 {[%clk 0:00:20]}  Rd3 {[%clk 0:00:15]} 43. Kg2 {[%clk 0:00:19]}  g5 {[%clk 0:00:16]} 44. Bg3 {[%clk 0:00:19]}  Rd2+ {[%clk 0:00:16]} 45. Kh3 {[%clk 0:00:19]}  Kg6 {[%clk 0:00:17]} 46. Rb1 {[%clk 0:00:19]}  Na3 {[%clk 0:00:14]} 47. Rb3 {[%clk 0:00:18]}  Ra2 {[%clk 0:00:13]} 48. Bd6 {[%clk 0:00:19]}  Nc4 {[%clk 0:00:13]} 49. Bg3 {[%clk 0:00:18]}  Ra5 {[%clk 0:00:13]} 50. Bc7 {[%clk 0:00:18]}  Ra7 {[%clk 0:00:13]} 51. Bg3 {[%clk 0:00:18]}  Rb7 {[%clk 0:00:14]} 52. Rb1 {[%clk 0:00:19]}  h5 {[%clk 0:00:14]} 53. Rd1 {[%clk 0:00:19]}  Ne3 {[%clk 0:00:14]} 54. Rd3 {[%clk 0:00:19]}  Re7 {[%clk 0:00:13]} 55. Bf2 {[%clk 0:00:19]}  g4+ {[%clk 0:00:12]} 56. fxg4 {[%clk 0:00:17]}  Nxg4 {[%clk 0:00:13]} 57. Bg3 {[%clk 0:00:14]}  Rd7 {[%clk 0:00:13]} 58. Kg2 {[%clk 0:00:14]}  Kf5 {[%clk 0:00:13]} 59. Rd4 {[%clk 0:00:13]}  Nf6 {[%clk 0:00:11]} 60. Rf4+ {[%clk 0:00:14]}  Kg5 {[%clk 0:00:11]} 61. Rd4 {[%clk 0:00:14]}  Ne4 {[%clk 0:00:11]} 62. Be1 {[%clk 0:00:15]}  Kf4 {[%clk 0:00:10]} 63. Bd2+ {[%clk 0:00:13]}  Ke5 {[%clk 0:00:10]} 64. Be1 {[%clk 0:00:14]}  Rc7 {[%clk 0:00:08]} 65. Rb4 {[%clk 0:00:11]}  Rc5 {[%clk 0:00:08]} 66. Kh3 {[%clk 0:00:10]}  Nxc3 {[%clk 0:00:08]} 67. Kh4 {[%clk 0:00:10]}  Rc4+ {[%clk 0:00:07]} 68. Rxc4 {[%clk 0:00:09]}  bxc4 {[%clk 0:00:07]} 69. Bxc3+ {[%clk 0:00:09]}  d4 {[%clk 0:00:08]} 70. Bd2 {[%clk 0:00:02]}  c3 {[%clk 0:00:07]} 71. Be1 {[%clk 0:00:02]}  Ke4 {[%clk 0:00:07]} 72. Kxh5 {[%clk 0:00:03]}  Ke3 {[%clk 0:00:08]} 73. Bh4 {[%clk 0:00:03]}  d3 {[%clk 0:00:08]} 74. Bg5+ {[%clk 0:00:03]}  Ke2 {[%clk 0:00:08]} 75. h4 {[%clk 0:00:03]}  d2 {[%clk 0:00:09]} 76. Bxd2 {[%clk 0:00:04]}  cxd2 {[%clk 0:00:10]} 77. Kg6 {[%clk 0:00:04]}  d1=Q {[%clk 0:00:10]} 78. h5 {[%clk 0:00:05]}  Qa1 {[%clk 0:00:09]} 79. h6 {[%clk 0:00:06]}  Qh8 {[%clk 0:00:09]} 80. Kg5 {[%clk 0:00:07]}  Kf3 {[%clk 0:00:10]} 81. Kh5 {[%clk 0:00:08]}  Ke4 {[%clk 0:00:11]} 82. Kg6 {[%clk 0:00:08]}  Kd5 {[%clk 0:00:12]} 83. Kg5 {[%clk 0:00:09]}  Ke6 {[%clk 0:00:13]} 84. Kh5 {[%clk 0:00:10]}  Kf7 {[%clk 0:00:14]} 85. Kg5 {[%clk 0:00:11]}  Qh7 {[%clk 0:00:14]} 86. Kh5 {[%clk 0:00:12]}  Kf6 {[%clk 0:00:14]} 87. Kg4 {[%clk 0:00:12]}  Qxh6 {[%clk 0:00:14]} 88. Kf3 {[%clk 0:00:13]}  Qh4 {[%clk 0:00:14]} 89. Ke3 {[%clk 0:00:13]}  Ke5 {[%clk 0:00:15]} 90. Kd3 {[%clk 0:00:14]}  Qf4 {[%clk 0:00:14]} 0-1


[Site "https://www.chess.com"]

[Event "Titled Tuesday Blitz May 03 Early 2022"]
[White "Xu, Yi"]
[Black "Matinian, Nikita"]
[WhiteFideId "8605564"]
[BlackFideId "24129100"]
[WhiteElo "2471"]
[BlackElo "2422"]
[Result "1-0"]
[Round "09"]
[TimeControl "180+1"]
[Date "2022.05.03"]
[WhiteClock "0:00:07"]
[BlackClock "0:00:01"]

1. e4 {[%clk 0:02:59]}  e5 {[%clk 0:02:58]} 2. Nf3 {[%clk 0:02:59]}  Nc6 {[%clk 0:02:58]} 3. Bc4 {[%clk 0:02:59]}  Nf6 {[%clk 0:02:56]} 4. d3 {[%clk 0:02:59]}  h6 {[%clk 0:02:54]} 5. O-O {[%clk 0:02:59]}  d6 {[%clk 0:02:54]} 6. a4 {[%clk 0:02:59]}  g5 {[%clk 0:02:53]} 7. a5 {[%clk 0:02:59]}  a6 {[%clk 0:02:48]} 8. Nc3 {[%clk 0:02:56]}  Bg7 {[%clk 0:02:48]} 9. Re1 {[%clk 0:02:49]}  O-O {[%clk 0:02:40]} 10. Be3 {[%clk 0:02:39]}  Be6 {[%clk 0:02:30]} 11. h3 {[%clk 0:02:30]}  Ne7 {[%clk 0:02:17]} 12. Bxe6 {[%clk 0:02:23]}  fxe6 {[%clk 0:02:18]} 13. d4 {[%clk 0:02:23]}  exd4 {[%clk 0:02:12]} 14. Nxd4 {[%clk 0:02:23]}  Qd7 {[%clk 0:02:12]} 15. Qd3 {[%clk 0:02:05]}  Ng6 {[%clk 0:01:50]} 16. Rad1 {[%clk 0:02:04]}  Ne5 {[%clk 0:01:47]} 17. Qe2 {[%clk 0:02:02]}  Qf7 {[%clk 0:01:36]} 18. Rf1 {[%clk 0:02:02]}  Rae8 {[%clk 0:01:16]} 19. f4 {[%clk 0:02:01]}  gxf4 {[%clk 0:01:16]} 20. Bxf4 {[%clk 0:01:59]}  Qg6 {[%clk 0:01:10]} 21. Qe3 {[%clk 0:01:33]}  Nh5 {[%clk 0:00:52]} 22. Bh2 {[%clk 0:01:28]}  Rxf1+ {[%clk 0:00:50]} 23. Rxf1 {[%clk 0:01:27]}  Nc4 {[%clk 0:00:48]} 24. Qf2 {[%clk 0:01:15]}  Rf8 {[%clk 0:00:33]} 25. Nf3 {[%clk 0:01:15]}  Nxb2 {[%clk 0:00:33]} 26. Qe1 {[%clk 0:00:55]}  Nc4 {[%clk 0:00:28]} 27. e5 {[%clk 0:00:42]}  Nf4 {[%clk 0:00:22]} 28. Bxf4 {[%clk 0:00:39]}  Rxf4 {[%clk 0:00:23]} 29. Ne2 {[%clk 0:00:36]}  Re4 {[%clk 0:00:20]} 30. exd6 {[%clk 0:00:37]}  cxd6 {[%clk 0:00:19]} 31. c3 {[%clk 0:00:34]}  Ne3 {[%clk 0:00:19]} 32. Rf2 {[%clk 0:00:33]}  Nf5 {[%clk 0:00:17]} 33. Qb1 {[%clk 0:00:30]}  d5 {[%clk 0:00:12]} 34. Qxb7 {[%clk 0:00:28]}  Ne3 {[%clk 0:00:09]} 35. Nfd4 {[%clk 0:00:23]}  Nd1 {[%clk 0:00:08]} 36. Rf3 {[%clk 0:00:19]}  Nxc3 {[%clk 0:00:05]} 37. Rxc3 {[%clk 0:00:13]}  Rxd4 {[%clk 0:00:02]} 38. Rc8+ {[%clk 0:00:12]}  Kh7 {[%clk 0:00:03]} 39. Nxd4 {[%clk 0:00:12]}  Qe4 {[%clk 0:00:02]} 40. Nf3 {[%clk 0:00:10]}  Qe3+ {[%clk 0:00:02]} 41. Kh1 {[%clk 0:00:08]}  Qe4 {[%clk 0:00:01]} 42. Rc7 {[%clk 0:00:08]}  Qg6 {[%clk 0:00:01]} 43. Rxg7+ {[%clk 0:00:07]} 1-0


[Site "https://www.chess.com"]

[Event "Titled Tuesday Blitz May 03 Early 2022"]
[White "Yuan, Qingyu"]
[Black "Nguyen, Hong Anh"]
[WhiteFideId "8609772"]
[BlackFideId "12406732"]
[WhiteElo "2359"]
[BlackElo "2016"]
[Result "1-0"]
[Round "09"]
[TimeControl "180+1"]
[Date "2022.05.03"]
[WhiteClock "0:00:13"]
[BlackClock "0:00:17"]

1. e4 {[%clk 0:03:00]}  c5 {[%clk 0:02:58]} 2. Nf3 {[%clk 0:03:01]}  Nc6 {[%clk 0:02:58]} 3. Bc4 {[%clk 0:03:01]}  g6 {[%clk 0:02:57]} 4. c3 {[%clk 0:02:57]}  Bg7 {[%clk 0:02:47]} 5. d4 {[%clk 0:02:57]}  cxd4 {[%clk 0:02:41]} 6. cxd4 {[%clk 0:02:58]}  d6 {[%clk 0:02:42]} 7. Nc3 {[%clk 0:02:58]}  Bg4 {[%clk 0:02:41]} 8. Bxf7+ {[%clk 0:02:49]}  Kxf7 {[%clk 0:02:39]} 9. Ng5+ {[%clk 0:02:49]}  Ke8 {[%clk 0:02:40]} 10. Qxg4 {[%clk 0:02:49]}  Nxd4 {[%clk 0:02:39]} 11. O-O {[%clk 0:02:42]}  Qd7 {[%clk 0:02:35]} 12. Qxd7+ {[%clk 0:02:36]}  Kxd7 {[%clk 0:02:34]} 13. Nf7 {[%clk 0:02:37]}  Nf6 {[%clk 0:02:33]} 14. Nxh8 {[%clk 0:02:37]}  Rxh8 {[%clk 0:02:34]} 15. Rd1 {[%clk 0:02:28]}  Nc6 {[%clk 0:02:26]} 16. f3 {[%clk 0:02:24]}  Rc8 {[%clk 0:02:22]} 17. Be3 {[%clk 0:02:16]}  a6 {[%clk 0:02:21]} 18. Rac1 {[%clk 0:02:13]}  Nb4 {[%clk 0:02:17]} 19. a3 {[%clk 0:02:09]}  Nc6 {[%clk 0:02:17]} 20. Na4 {[%clk 0:02:09]}  Rf8 {[%clk 0:02:16]} 21. Nb6+ {[%clk 0:02:09]}  Ke8 {[%clk 0:02:16]} 22. Rc2 {[%clk 0:02:02]}  Nd7 {[%clk 0:02:15]} 23. Nd5 {[%clk 0:02:00]}  Nde5 {[%clk 0:02:09]} 24. b4 {[%clk 0:01:54]}  b5 {[%clk 0:02:04]} 25. f4 {[%clk 0:01:41]}  Nc4 {[%clk 0:02:04]} 26. Bc1 {[%clk 0:01:34]}  Nd4 {[%clk 0:01:57]} 27. Rf2 {[%clk 0:01:29]}  Kd7 {[%clk 0:01:51]} 28. g3 {[%clk 0:01:29]}  Nb3 {[%clk 0:01:45]} 29. Be3 {[%clk 0:01:23]}  Rb8 {[%clk 0:01:35]} 30. Rd3 {[%clk 0:01:16]}  e6 {[%clk 0:01:19]} 31. Rxb3 {[%clk 0:00:31]}  exd5 {[%clk 0:01:19]} 32. e5 {[%clk 0:00:31]}  dxe5 {[%clk 0:01:14]} 33. fxe5 {[%clk 0:00:31]}  Bxe5 {[%clk 0:00:53]} 34. Rf7+ {[%clk 0:00:30]}  Ke6 {[%clk 0:00:51]} 35. Rxh7 {[%clk 0:00:30]}  Rf8 {[%clk 0:00:45]} 36. Bc5 {[%clk 0:00:30]}  Rf5 {[%clk 0:00:35]} 37. Kg2 {[%clk 0:00:22]}  d4 {[%clk 0:00:32]} 38. Rf3 {[%clk 0:00:14]}  Ne3+ {[%clk 0:00:23]} 39. Kf2 {[%clk 0:00:14]}  Nd1+ {[%clk 0:00:22]} 40. Ke2 {[%clk 0:00:13]}  Nc3+ {[%clk 0:00:22]} 41. Kf2 {[%clk 0:00:12]}  Nd1+ {[%clk 0:00:23]} 42. Kg2 {[%clk 0:00:13]}  Ne3+ {[%clk 0:00:23]} 43. Rxe3 {[%clk 0:00:13]}  dxe3 {[%clk 0:00:23]} 44. Bxe3 {[%clk 0:00:14]}  Bd6 {[%clk 0:00:21]} 45. Ra7 {[%clk 0:00:13]}  Rd5 {[%clk 0:00:19]} 46. Rxa6 {[%clk 0:00:13]}  Kf5 {[%clk 0:00:19]} 47. Kf3 {[%clk 0:00:12]}  Rd3 {[%clk 0:00:19]} 48. g4+ {[%clk 0:00:13]}  Ke6 {[%clk 0:00:18]} 49. Ke4 {[%clk 0:00:12]}  Rd1 {[%clk 0:00:18]} 50. Bf4 {[%clk 0:00:12]}  Re1+ {[%clk 0:00:17]} 51. Kd3 {[%clk 0:00:12]}  Rd1+ {[%clk 0:00:17]} 52. Kc2 {[%clk 0:00:12]}  Rd4 {[%clk 0:00:16]} 53. Rxd6+ {[%clk 0:00:12]}  Rxd6 {[%clk 0:00:17]} 54. Bxd6 {[%clk 0:00:13]}  Kxd6 {[%clk 0:00:17]} 55. Kd3 {[%clk 0:00:13]} 1-0


[Site "https://www.chess.com"]

[Event "Titled Tuesday Blitz May 03 Early 2022"]
[White "Zhu, Jiner"]
[Black "Hamley, Ryan"]
[WhiteFideId "8608059"]
[BlackFideId "30959497"]
[WhiteElo "2281"]
[BlackElo "2512"]
[Result "1-0"]
[Round "09"]
[TimeControl "180+1"]
[Date "2022.05.03"]
[WhiteClock "0:00:16"]
[BlackClock "0:00:04"]

1. e4 {[%clk 0:03:00]}  c6 {[%clk 0:02:57]} 2. d4 {[%clk 0:02:59]}  d5 {[%clk 0:02:57]} 3. f3 {[%clk 0:02:58]}  dxe4 {[%clk 0:02:57]} 4. fxe4 {[%clk 0:02:59]}  e5 {[%clk 0:02:57]} 5. Nf3 {[%clk 0:02:58]}  Bg4 {[%clk 0:02:58]} 6. c3 {[%clk 0:02:56]}  Nd7 {[%clk 0:02:57]} 7. Bd3 {[%clk 0:02:55]}  Ngf6 {[%clk 0:02:57]} 8. O-O {[%clk 0:02:55]}  Bd6 {[%clk 0:02:57]} 9. Na3 {[%clk 0:02:52]}  O-O {[%clk 0:02:48]} 10. Nc4 {[%clk 0:02:49]}  Bc7 {[%clk 0:02:48]} 11. Ne3 {[%clk 0:02:44]}  Bh5 {[%clk 0:02:46]} 12. Nf5 {[%clk 0:02:36]}  Bg6 {[%clk 0:02:44]} 13. N3h4 {[%clk 0:02:27]}  Re8 {[%clk 0:02:39]} 14. Qf3 {[%clk 0:02:16]}  b5 {[%clk 0:01:54]} 15. Bg5 {[%clk 0:02:09]}  Re6 {[%clk 0:01:49]} 16. Kh1 {[%clk 0:02:01]}  Nb6 {[%clk 0:01:32]} 17. Rad1 {[%clk 0:01:55]}  Nbd7 {[%clk 0:00:46]} 18. Bb1 {[%clk 0:01:35]}  Bh5 {[%clk 0:00:41]} 19. Qxh5 {[%clk 0:00:25]}  Nxh5 {[%clk 0:00:41]} 20. Bxd8 {[%clk 0:00:26]}  Bxd8 {[%clk 0:00:35]} 21. d5 {[%clk 0:00:26]}  cxd5 {[%clk 0:00:32]} 22. exd5 {[%clk 0:00:26]}  Rb6 {[%clk 0:00:29]} 23. d6 {[%clk 0:00:22]}  Rc8 {[%clk 0:00:24]} 24. Ne7+ {[%clk 0:00:17]}  Bxe7 {[%clk 0:00:07]} 25. dxe7 {[%clk 0:00:18]}  Rb7 {[%clk 0:00:07]} 26. Rxd7 {[%clk 0:00:17]}  Rxd7 {[%clk 0:00:07]} 27. Bf5 {[%clk 0:00:17]}  Rdc7 {[%clk 0:00:05]} 28. Bxc8 {[%clk 0:00:17]}  Rxc8 {[%clk 0:00:06]} 29. Rd1 {[%clk 0:00:17]}  Re8 {[%clk 0:00:06]} 30. Rd8 {[%clk 0:00:16]}  Nf6 {[%clk 0:00:07]} 31. Nf5 {[%clk 0:00:16]}  g6 {[%clk 0:00:04]} 32. Nd6 {[%clk 0:00:16]} 1-0


[Site "https://www.chess.com"]

[Event "Titled Tuesday Blitz May 03 Early 2022"]
[White "Aldokhin, Ivan"]
[Black "Laohawirapap, Prin"]
[WhiteFideId "24115720"]
[BlackFideId "6205003"]
[WhiteElo "2231"]
[BlackElo "1832"]
[Result "1-0"]
[Round "10"]
[TimeControl "180+1"]
[Date "2022.05.03"]
[WhiteClock "0:01:36"]
[BlackClock "0:00:11"]

1. e4 {[%clk 0:03:00]}  e6 {[%clk 0:02:59]} 2. d4 {[%clk 0:02:59]}  d5 {[%clk 0:03:00]} 3. Nd2 {[%clk 0:02:59]}  c5 {[%clk 0:03:00]} 4. exd5 {[%clk 0:02:58]}  Qxd5 {[%clk 0:02:59]} 5. Ngf3 {[%clk 0:02:58]}  cxd4 {[%clk 0:02:59]} 6. Bc4 {[%clk 0:02:58]}  Qd6 {[%clk 0:03:00]} 7. O-O {[%clk 0:02:57]}  Nf6 {[%clk 0:03:00]} 8. Qe2 {[%clk 0:02:57]}  Nc6 {[%clk 0:02:56]} 9. Nb3 {[%clk 0:02:56]}  Be7 {[%clk 0:02:50]} 10. Rd1 {[%clk 0:02:55]}  O-O {[%clk 0:02:50]} 11. Nbxd4 {[%clk 0:02:55]}  Nxd4 {[%clk 0:02:50]} 12. Rxd4 {[%clk 0:02:54]}  Qb6 {[%clk 0:02:40]} 13. c3 {[%clk 0:02:41]}  Bd7 {[%clk 0:02:13]} 14. Ne5 {[%clk 0:02:40]}  Bc6 {[%clk 0:02:04]} 15. Nxf7 {[%clk 0:02:29]}  Kxf7 {[%clk 0:01:44]} 16. Qxe6+ {[%clk 0:02:22]}  Ke8 {[%clk 0:01:44]} 17. Bg5 {[%clk 0:02:17]}  Bd7 {[%clk 0:01:21]} 18. Qe2 {[%clk 0:02:02]}  Qc5 {[%clk 0:00:47]} 19. Re1 {[%clk 0:01:44]}  Kd8 {[%clk 0:00:25]} 20. b4 {[%clk 0:01:43]}  Qxg5 {[%clk 0:00:23]} 21. Qxe7+ {[%clk 0:01:42]}  Kc7 {[%clk 0:00:23]} 22. Qd6+ {[%clk 0:01:39]}  Kc8 {[%clk 0:00:19]} 23. Qxf8+ {[%clk 0:01:38]}  Kc7 {[%clk 0:00:12]} 24. Qxa8 {[%clk 0:01:37]}  Qxg2+ {[%clk 0:00:11]} 25. Kxg2 {[%clk 0:01:37]}  Bh3+ {[%clk 0:00:11]} 26. Kxh3 {[%clk 0:01:37]}  Nh5 {[%clk 0:00:11]} 27. Qd8+ {[%clk 0:01:36]} 1-0


[Site "https://www.chess.com"]

[Event "Titled Tuesday Blitz May 03 Early 2022"]
[White "Arabidze, Meri"]
[Black "Sirosh, Ilja"]
[WhiteFideId "13604040"]
[BlackFideId "4500458"]
[WhiteElo "2335"]
[BlackElo "2241"]
[Result "1-0"]
[Round "10"]
[TimeControl "180+1"]
[Date "2022.05.03"]
[WhiteClock "0:00:48"]
[BlackClock "0:01:16"]

1. Nf3 {[%clk 0:03:00]}  Nf6 {[%clk 0:02:44]} 2. g3 {[%clk 0:03:01]}  g6 {[%clk 0:02:44]} 3. Bg2 {[%clk 0:03:01]}  Bg7 {[%clk 0:02:45]} 4. O-O {[%clk 0:03:02]}  O-O {[%clk 0:02:45]} 5. d4 {[%clk 0:03:03]}  d5 {[%clk 0:02:45]} 6. c4 {[%clk 0:03:00]}  c6 {[%clk 0:02:45]} 7. cxd5 {[%clk 0:03:00]}  cxd5 {[%clk 0:02:46]} 8. Ne5 {[%clk 0:03:00]}  Ne4 {[%clk 0:02:46]} 9. Nc3 {[%clk 0:02:53]}  Nxc3 {[%clk 0:02:47]} 10. bxc3 {[%clk 0:02:53]}  Nc6 {[%clk 0:02:46]} 11. Bf4 {[%clk 0:02:53]}  Nxe5 {[%clk 0:02:39]} 12. dxe5 {[%clk 0:02:52]}  Be6 {[%clk 0:02:39]} 13. Rb1 {[%clk 0:02:46]}  Qc7 {[%clk 0:02:31]} 14. Bxd5 {[%clk 0:02:35]}  Rfd8 {[%clk 0:02:23]} 15. c4 {[%clk 0:02:35]}  Bxe5 {[%clk 0:02:22]} 16. Rxb7 {[%clk 0:01:56]}  Qd6 {[%clk 0:02:22]} 17. Bxe5 {[%clk 0:01:51]}  Qxe5 {[%clk 0:02:23]} 18. Rxe7 {[%clk 0:01:40]}  Kf8 {[%clk 0:02:17]} 19. Rb7 {[%clk 0:01:15]}  Bxd5 {[%clk 0:02:17]} 20. cxd5 {[%clk 0:01:15]}  Rxd5 {[%clk 0:02:12]} 21. Qb3 {[%clk 0:01:11]}  Kg7 {[%clk 0:02:12]} 22. Rc1 {[%clk 0:01:03]}  a5 {[%clk 0:01:22]} 23. Qf3 {[%clk 0:00:58]}  Rf8 {[%clk 0:01:19]} 24. Rcc7 {[%clk 0:00:57]}  Rd1+ {[%clk 0:01:15]} 25. Kg2 {[%clk 0:00:57]}  Qd5 {[%clk 0:01:16]} 26. e4 {[%clk 0:00:48]} 1-0


[Site "https://www.chess.com"]